[Event "71st RUS-ch Superfinal Women 2021"]
[Site "Ufa"]
[Date "2021.10.09"]
[Round "1.1"]
[White "Shuvalova, Polina"]
[Black "Ovod, Evgenija"]
[Result "1/2-1/2"]
[ECO "C67"]
[WhiteElo "2509"]
[BlackElo "2331"]
[Annotator "ChessBase"]
[PlyCount "103"]
[EventDate "2021.10.09"]
[EventType "tourn"]
[EventCountry "RUS"]
[SourceTitle "playchess.com"]
[Source "ChessBase"]
[SourceQuality "1"]
[TimeControl "40/5400+30:1800+30"]

1. e4 {[%emt 0:00:03]} e5 {[%emt 0:00:06]} 2. Nf3 {[%emt 0:00:04]} Nc6 {
[%emt 0:00:05]} 3. Bb5 {[%emt 0:00:24]} Nf6 {[%emt 0:00:07]} 4. O-O {[%emt 0:
00:19]} Nxe4 {[%emt 0:00:08]} 5. d4 {[%emt 0:00:14]} Be7 {[%emt 0:00:09]} 6.
Qe2 {[%emt 0:02:38]} Nd6 {[%emt 0:00:10]} 7. Bxc6 {[%emt 0:00:08]} bxc6 {
[%emt 0:00:41]} 8. dxe5 {[%emt 0:00:48]} Nb7 {[%emt 0:00:08]} 9. c4 {[%emt 0:
03:53]} O-O {[%emt 0:01:15]} 10. Nc3 {[%emt 0:00:22]} f6 {[%emt 0:05:39]} 11.
Re1 {[%emt 0:08:37]} Nc5 {[%emt 0:05:35]} 12. Bf4 {[%emt 0:06:29]} Ne6 {
[%emt 0:03:26]} 13. exf6 {[%emt 0:10:29]} Bxf6 {[%emt 0:00:35]} 14. Bg3 {
[%emt 0:00:18]} Bxc3 {[%emt 0:34:03]} 15. bxc3 {[%emt 0:00:25]} d6 {[%emt 0:00:
05]} 16. c5 {[%emt 0:13:41]} Nxc5 {[%emt 0:11:27]} 17. Qc4+ {[%emt 0:01:12]}
Kh8 {[%emt 0:01:07]} 18. Bh4 {[%emt 0:00:47]} Qd7 {[%emt 0:00:10]} 19. Rad1 {
[%emt 0:01:52]} Qg4 {[%emt 0:07:54]} 20. Qd4 {[%emt 0:21:02]} Qxd4 {[%emt 0:06:
52]} 21. cxd4 {[%emt 0:01:01]} Ne6 {[%emt 0:00:08]} 22. Ng5 {[%emt 0:03:38]}
Nf4 {[%emt 0:04:21]} 23. Bg3 {[%emt 0:02:05]} Nd5 {[%emt 0:00:46]} 24. f3 {
[%emt 0:04:29]} Bd7 {[%emt 0:06:41]} 25. Rd3 {[%emt 0:00:18]} a5 {[%emt 0:02:
13]} 26. Ra3 {[%emt 0:04:39]} Rfb8 {[%emt 0:01:53]} 27. Ne4 {[%emt 0:01:13]}
Rb2 {[%emt 0:05:06]} 28. Rd1 {[%emt 0:07:35]} Kg8 {[%emt 0:00:39]} 29. Rd2 {
[%emt 0:01:55]} Rxd2 {[%emt 0:00:58]} 30. Nxd2 {[%emt 0:00:05]} a4 {[%emt 0:00:
11]} 31. Ne4 {[%emt 0:02:42]} h6 {[%emt 0:00:59]} 32. Be1 {[%emt 0:00:24]} Kf7
{[%emt 0:00:14]} 33. Kf2 {[%emt 0:00:21]} Be6 {[%emt 0:01:07]} 34. Rd3 {
[%emt 0:01:16]} a3 {[%emt 0:01:32]} 35. Bd2 {[%emt 0:01:10]} Nb6 {[%emt 0:00:
47]} 36. Bb4 {[%emt 0:00:43]} Bxa2 {[%emt 0:00:22]} 37. Rxa3 {[%emt 0:00:10]}
Rxa3 {[%emt 0:00:23]} 38. Bxa3 {[%emt 0:00:01]} Ke6 {[%emt 0:00:11]} 39. Nc3 {
[%emt 0:00:13]} Bb3 {[%emt 0:00:19]} 40. Bc1 {[%emt 0:00:00]} Nd7 {[%emt 0:00:
00]} 41. Ba3 {[%emt 0:05:23]} Nf8 {[%emt 0:04:27]} 42. Ke3 {[%emt 0:00:24]} Ng6
{[%emt 0:00:56]} 43. g3 {[%emt 0:02:49]} Bc4 {[%emt 0:01:15]} 44. Bb4 {[%emt 0:
00:36]} Ne7 {[%emt 0:00:21]} 45. g4 {[%emt 0:00:21]} Nd5+ {[%emt 0:15:13]} 46.
Nxd5 {[%emt 0:00:06]} cxd5 {[%emt 0:00:03]} 47. f4 {[%emt 0:03:18]} g6 {
[%emt 0:00:11]} 48. Ba5 {[%emt 0:00:36]} c6 {[%emt 0:02:26]} 49. Bb4 {[%emt 0:
00:10]} Bb3 {[%emt 0:00:05]} 50. Ke2 {[%emt 0:00:23]} Bc2 {[%emt 0:00:16]} 51.
Kd2 {[%emt 0:00:10]} Be4 {[%emt 0:00:18]} 52. Ke3 {[%emt 0:00:04]} 1/2-1/2

[Event "71st RUS-ch Superfinal Women 2021"]
[Site "Ufa"]
[Date "2021.10.09"]
[Round "1.2"]
[White "Girya, Olga"]
[Black "Gunina, Valentina"]
[Result "1/2-1/2"]
[ECO "D11"]
[WhiteElo "2410"]
[BlackElo "2462"]
[Annotator "ChessBase"]
[PlyCount "185"]
[EventDate "2021.10.09"]
[EventType "tourn"]
[EventCountry "RUS"]
[SourceTitle "playchess.com"]
[Source "ChessBase"]
[SourceQuality "1"]
[TimeControl "40/5400+30:1800+30"]

1. d4 {[%emt 0:00:04]} d5 {[%emt 0:00:13]} 2. c4 {[%emt 0:00:16]} c6 {[%emt 0:
00:07]} 3. Nf3 {[%emt 0:00:10]} Nf6 {[%emt 0:00:12]} 4. Qb3 {[%emt 0:00:19]}
dxc4 {[%emt 0:01:19]} 5. Qxc4 {[%emt 0:00:05]} Bg4 {[%emt 0:00:25]} 6. Nc3 {
[%emt 0:00:31]} Nbd7 {[%emt 0:01:51]} 7. Bf4 {[%emt 0:00:24]} e6 {[%emt 0:03:
32]} 8. e4 {[%emt 0:01:08]} Be7 {[%emt 0:08:42]} 9. Be2 {[%emt 0:02:30]} O-O {
[%emt 0:02:13]} 10. O-O {[%emt 0:00:05]} Rc8 {[%emt 0:02:54]} 11. h3 {[%emt 0:
07:54]} Bh5 {[%emt 0:01:07]} 12. Qb3 {[%emt 0:00:31]} Qb6 {[%emt 0:05:14]} 13.
Rfd1 {[%emt 0:01:02]} Qxb3 {[%emt 0:06:28]} 14. axb3 {[%emt 0:00:19]} a6 {
[%emt 0:00:06]} 15. g4 {[%emt 0:16:05]} Bg6 {[%emt 0:01:00]} 16. Nd2 {[%emt 0:
00:30]} Rfd8 {[%emt 0:15:34]} 17. f3 {[%emt 0:31:55]} c5 {[%emt 0:02:11]} 18.
d5 {[%emt 0:07:05]} e5 {[%emt 0:21:47]} 19. Bg3 {[%emt 0:00:39]} Bd6 {[%emt 0:
01:25]} 20. Bh4 {[%emt 0:04:41]} Be7 {[%emt 0:03:08]} 21. Bg3 {[%emt 0:06:27]}
Bd6 {[%emt 0:00:35]} 22. Nc4 {[%emt 0:00:49]} Ne8 {[%emt 0:00:09]} 23. Rdc1 {
[%emt 0:02:19]} Bc7 {[%emt 0:01:13]} 24. Nd1 {[%emt 0:04:17]} f6 {[%emt 0:04:
14]} 25. Nde3 {[%emt 0:00:45]} Rb8 {[%emt 0:07:16]} 26. Kh2 {[%emt 0:03:21]}
Rdc8 {[%emt 0:00:22]} 27. h4 {[%emt 0:03:23]} Nd6 {[%emt 0:04:18]} 28. Nxd6 {
[%emt 0:01:07]} Bxd6 {[%emt 0:00:02]} 29. Bf1 {[%emt 0:02:18]} Be8 {[%emt 0:01:
23]} 30. Bh3 {[%emt 0:00:37]} Rd8 {[%emt 0:02:14]} 31. Rc2 {[%emt 0:02:42]} Bf8
{[%emt 0:02:23]} 32. g5 {[%emt 0:00:49]} Bh5 {[%emt 0:01:48]} 33. gxf6 {
[%emt 0:00:49]} gxf6 {[%emt 0:00:39]} 34. Be6+ {[%emt 0:00:22]} Kh8 {[%emt 0:
00:35]} 35. Rg1 {[%emt 0:00:57]} Bh6 {[%emt 0:00:34]} 36. Nf5 {[%emt 0:00:24]}
Bf4 {[%emt 0:00:23]} 37. Bxf4 {[%emt 0:00:37]} exf4 {[%emt 0:00:01]} 38. Bxd7 {
[%emt 0:00:31]} Rxd7 {[%emt 0:00:04]} 39. Rxc5 {[%emt 0:00:32]} Bxf3 {[%emt 0:
00:16]} 40. Re1 {[%emt 0:00:00]} Rg8 {[%emt 0:00:00]} 41. Rc3 {[%emt 0:17:01]}
Bh5 {[%emt 0:06:05]} 42. Rf1 {[%emt 0:05:47]} f3 {[%emt 0:01:06]} 43. Rg1 {
[%emt 0:03:47]} Re8 {[%emt 0:01:48]} 44. Ng3 {[%emt 0:02:29]} Bg4 {[%emt 0:00:
48]} 45. Rgc1 {[%emt 0:00:26]} Rg7 {[%emt 0:00:32]} 46. Rc7 {[%emt 0:00:52]}
Bd7 {[%emt 0:08:41]} 47. Rf1 {[%emt 0:01:48]} Bg4 {[%emt 0:04:35]} 48. Rxg7 {
[%emt 0:00:31]} Kxg7 {[%emt 0:00:01]} 49. Rc1 {[%emt 0:00:20]} f5 {[%emt 0:06:
29]} 50. exf5 {[%emt 0:01:02]} Re5 {[%emt 0:02:12]} 51. Rd1 {[%emt 0:01:27]} f2
{[%emt 0:00:52]} 52. Rd4 {[%emt 0:00:43]} Bf3 {[%emt 0:02:08]} 53. f6+ {
[%emt 0:00:51]} Kf7 {[%emt 0:00:16]} 54. Rd2 {[%emt 0:00:28]} Bxd5 {[%emt 0:00:
21]} 55. Rxf2 {[%emt 0:00:34]} Be6 {[%emt 0:01:51]} 56. b4 {[%emt 0:00:20]} Re3
{[%emt 0:00:19]} 57. Rf4 {[%emt 0:00:37]} h6 {[%emt 0:01:39]} 58. Ne4 {[%emt 0:
00:19]} Rd3 {[%emt 0:00:31]} 59. Nc5 {[%emt 0:00:28]} Rd2+ {[%emt 0:00:13]} 60.
Kg3 {[%emt 0:00:09]} Bd5 {[%emt 0:00:33]} 61. Rf5 {[%emt 0:00:34]} Bc6 {
[%emt 0:00:48]} 62. b3 {[%emt 0:00:42]} Rg2+ {[%emt 0:00:52]} 63. Kf4 {[%emt 0:
00:29]} Re2 {[%emt 0:00:29]} 64. Rh5 {[%emt 0:00:49]} Rf2+ {[%emt 0:00:20]} 65.
Kg3 {[%emt 0:00:23]} Rxf6 {[%emt 0:00:37]} 66. Re5 {[%emt 0:00:13]} Rf3+ {
[%emt 0:00:36]} 67. Kg4 {[%emt 0:00:18]} b6 {[%emt 0:00:25]} 68. Re6 {[%emt 0:
00:49]} Rf6 {[%emt 0:00:51]} 69. Rxf6+ {[%emt 0:00:18]} Kxf6 {[%emt 0:00:02]}
70. Nxa6 {[%emt 0:00:29]} Bd7+ {[%emt 0:00:25]} 71. Kf4 {[%emt 0:00:45]} Ke6 {
[%emt 0:00:25]} 72. b5 {[%emt 0:00:48]} Kd6 {[%emt 0:00:21]} 73. Nb4 {[%emt 0:
00:25]} Bxb5 {[%emt 0:00:26]} 74. Nc2 {[%emt 0:00:36]} Kc5 {[%emt 0:00:23]} 75.
Ke5 {[%emt 0:00:22]} Be2 {[%emt 0:00:40]} 76. Ne3 {[%emt 0:00:28]} Kb4 {
[%emt 0:00:38]} 77. Nd5+ {[%emt 0:00:07]} Kxb3 {[%emt 0:01:03]} 78. Nxb6 {
[%emt 0:00:01]} Kb4 {[%emt 0:00:17]} 79. Nd7 {[%emt 0:00:24]} Kb5 {[%emt 0:00:
12]} 80. Kd5 {[%emt 0:01:10]} Bg4 {[%emt 0:00:34]} 81. Ne5 {[%emt 0:00:19]} Bd1
{[%emt 0:00:15]} 82. Kd6 {[%emt 0:00:21]} Be2 {[%emt 0:00:26]} 83. Nf7 {
[%emt 0:00:16]} h5 {[%emt 0:00:07]} 84. Ne5 {[%emt 0:00:08]} Bd1 {[%emt 0:00:
21]} 85. Nd3 {[%emt 0:00:15]} Be2 {[%emt 0:00:32]} 86. Nf4 {[%emt 0:00:08]} Bf3
{[%emt 0:00:15]} 87. Ke5 {[%emt 0:01:46]} Kc6 {[%emt 0:00:13]} 88. Kf6 {
[%emt 0:00:33]} Kd6 {[%emt 0:00:16]} 89. Kg5 {[%emt 0:00:53]} Ke7 {[%emt 0:00:
18]} 90. Ng6+ {[%emt 0:00:06]} Ke6 {[%emt 0:00:07]} 91. Nf4+ {[%emt 0:00:08]}
Kf7 {[%emt 0:00:10]} 92. Nxh5 {[%emt 0:00:04]} Bxh5 {[%emt 0:00:06]} 93. Kxh5 {
[%emt 0:00:02]} 1/2-1/2

[Event "71st RUS-ch Superfinal Women 2021"]
[Site "Ufa"]
[Date "2021.10.09"]
[Round "1.3"]
[White "Guseva, Marina"]
[Black "Bodnaruk, Anastasia"]
[Result "1-0"]
[ECO "E62"]
[WhiteElo "2394"]
[BlackElo "2415"]
[Annotator "NA"]
[PlyCount "103"]
[EventDate "2021.10.09"]
[EventType "tourn"]
[EventCountry "RUS"]
[SourceTitle "playchess.com"]
[Source "ChessBase"]
[SourceQuality "1"]
[TimeControl "40/5400+30:1800+30"]

{[%evp 8,93,18,16,44,29,50,32767,32767,32767,32767,32767,32767,32767,32767,
32767,32767,32767,32767,32767,32767,32767,45,13,31,35,32,19,23,32,14,-14,33,-4,
-8,-22,-17,-35,0,3,0,0,79,33,37,31,81,104,207,32767,32767,32767,32767,200,185,
185,32767,203,32767,32767,32767,32767,32767,32767,32767,299,32767,32767,32767,
32767,32767,32767,32767,32767,32767,287,306,287,266,330,319,342,379,469,454,
396,480,487]} 1. d4 {[%emt 0:00:03]} Nf6 {[%emt 0:00:04]} 2. c4 {[%emt 0:00:06]
} g6 {[%emt 0:00:04]} 3. Nf3 {[%emt 0:00:05]} Bg7 {[%emt 0:00:04]} 4. g3 {
[%emt 0:00:05]} O-O {[%emt 0:00:06]} 5. Bg2 {[%emt 0:00:04]} d6 {[%emt 0:00:25]
} 6. O-O {[%emt 0:00:07]} Nc6 {[%emt 0:00:06]} 7. Nc3 {[%emt 0:00:06]} e5 {
[%emt 0:00:57]} 8. dxe5 {[%emt 0:00:08]} dxe5 {[%emt 0:00:13]} 9. Bg5 {[%emt 0:
00:05]} Be6 {[%emt 0:00:33]} 10. Nd2 {[%emt 0:00:07]} Qc8 {[%emt 0:01:02]} 11.
Nd5 {[%emt 0:00:07]} Nd7 {[%emt 0:00:37]} 12. b4 {[%emt 0:00:07]} h6 {[%emt 0:
01:15]} 13. Be3 {[%emt 0:00:05]} Re8 {[%emt 0:00:52]} 14. Nb3 {[%emt 0:00:07]}
f5 {[%emt 0:07:23]} 15. Rc1 {[%emt 0:00:15]} Nd8 {[%emt 0:07:48]} 16. Qd2 {
[%emt 0:00:06]} Kh7 {[%emt 0:07:16]} 17. Rfd1 {[%emt 0:00:08]} c6 {[%emt 0:04:
06] [#]} 18. b5 $1 {[%emt 0:01:47]} c5 {[%emt 0:09:44]} ({Don't blunder} 18...
cxd5 $2 19. cxd5 {[%mdl 64] Discovered Attack} Qb8 20. dxe6 $18) 19. a4 {
[%emt 0:03:16]} Nf7 {[%emt 0:24:42]} 20. a5 {[%emt 0:15:32]} b6 $1 {[%emt 0:00:
47]} 21. Ra1 {[%emt 0:19:22]} e4 {[%emt 0:01:58]} 22. Ra4 {[%emt 0:03:49]} bxa5
{[%emt 0:07:47]} 23. Rxa5 {[%emt 0:24:09]} Nb6 {[%emt 0:00:22]} 24. Qc1 {
[%emt 0:03:41]} ({Avoid the trap} 24. Bxc5 $2 Nxc4 {[%mdl 64] Double Attack}
25. Qb4 Nxa5 $19) 24... Bxd5 {[%emt 0:13:12]} (24... Rd8 $11 {remains equal.})
25. cxd5 {[%emt 0:00:15]} c4 {[%emt 0:00:14]} 26. Nc5 {[%emt 0:02:52]} c3 {
[%emt 0:01:40] [#]} 27. d6 $1 {[%emt 0:13:27]} Nd7 {[%emt 0:02:56]} (27... Ne5
$16) 28. b6 {[%emt 0:03:21]} axb6 {[%emt 0:07:05]} 29. Rxa8 {[%emt 0:00:05]}
Qxa8 {[%emt 0:00:02]} 30. Nxd7 {[%emt 0:00:06]} Qc6 {[%emt 0:01:01]} 31. Nxb6 {
[%emt 0:00:42]} Rb8 {[%emt 0:00:59]} 32. d7 {[%emt 0:03:04]} Rxb6 {[%emt 0:00:
33]} 33. Bxb6 {[%emt 0:06:41]} Qxb6 {[%emt 0:00:01]} 34. e3 {[%emt 0:01:33]}
Bf6 {[%emt 0:00:45]} 35. Bf1 {[%emt 0:00:38]} Qc7 {[%emt 0:00:49]} 36. Qc2 {
[%emt 0:01:33]} Kg7 {[%emt 0:00:27]} 37. Qa4 {[%emt 0:00:35]} Ne5 {[%emt 0:00:
30]} 38. Bb5 {[%emt 0:00:34]} Nd3 {[%emt 0:00:32]} 39. Qc2 {[%emt 0:00:35]} Nb4
{[%emt 0:00:30]} 40. Qb3 {[%emt 0:00:00]} Nd3 {[%emt 0:00:00]} 41. d8=Q {
[%emt 0:16:21]} ({Less strong is} 41. Bxd3 exd3 42. Qd5 (42. Rxd3 $2 c2 $19)
42... d2 $14) 41... Qxd8 {[%emt 0:04:46]} 42. Qb1 {[%emt 0:00:08]} h5 {[%emt 0:
07:50]} 43. Bxd3 {[%emt 0:00:39]} exd3 {[%emt 0:00:03]} 44. Qxd3 {[%emt 0:00:
52]} ({Less strong is} 44. Rxd3 Qc8 $16) 44... Qa5 {[%emt 0:13:15]} 45. Qc4 {
[%emt 0:02:06]} Kh6 {[%emt 0:01:10]} 46. h4 {[%emt 0:00:25]} Bg7 {[%emt 0:02:
08]} 47. Rd6 $18 {[%emt 0:02:45]} Kh7 {[%emt 0:04:28]} 48. Rc6 {[%emt 0:04:02]}
Qa1+ {[%emt 0:00:22]} 49. Kg2 {[%emt 0:00:10]} Qb1 {[%emt 0:00:57]} 50. Qe6 {
[%emt 0:01:10]} Qe4+ {[%emt 0:00:28]} 51. Qxe4 {[%emt 0:00:05]} fxe4 {[%emt 0:
00:01]} 52. Rc4 {[%emt 0:00:09]} 1-0

[Event "71st RUS-ch Superfinal Women 2021"]
[Site "Ufa"]
[Date "2021.10.09"]
[Round "1.4"]
[White "Kashlinskaya, Alina"]
[Black "Galliamova, Alisa"]
[Result "1-0"]
[ECO "D16"]
[WhiteElo "2493"]
[BlackElo "2421"]
[Annotator "ChessBase"]
[PlyCount "139"]
[EventDate "2021.10.09"]
[EventType "tourn"]
[EventCountry "RUS"]
[SourceTitle "playchess.com"]
[Source "ChessBase"]
[SourceQuality "1"]
[TimeControl "40/5400+30:1800+30"]

1. d4 {[%emt 0:00:03]} d5 {[%emt 0:00:04]} 2. c4 {[%emt 0:00:07]} c6 {[%emt 0:
00:05]} 3. Nf3 {[%emt 0:00:09]} Nf6 {[%emt 0:00:05]} 4. Nc3 {[%emt 0:00:08]}
dxc4 {[%emt 0:00:11]} 5. a4 {[%emt 0:00:06]} e6 {[%emt 0:00:06]} 6. e3 {
[%emt 0:01:13]} c5 {[%emt 0:00:50]} 7. Bxc4 {[%emt 0:00:16]} Nc6 {[%emt 0:00:
26]} 8. O-O {[%emt 0:00:15]} a6 {[%emt 0:01:53]} 9. Qe2 {[%emt 0:09:15]} Be7 {
[%emt 0:01:40]} 10. Rd1 {[%emt 0:02:31]} Qc7 {[%emt 0:06:30]} 11. h3 {[%emt 0:
18:27]} O-O {[%emt 0:24:21]} 12. d5 {[%emt 0:04:01]} exd5 {[%emt 0:00:58]} 13.
Nxd5 {[%emt 0:00:14]} Nxd5 {[%emt 0:00:11]} 14. Bxd5 {[%emt 0:00:13]} Bf6 {
[%emt 0:11:16]} 15. e4 {[%emt 0:05:11]} Nd4 {[%emt 0:15:50]} 16. Nxd4 {[%emt 0:
00:50]} Bxd4 {[%emt 0:00:48]} 17. Be3 {[%emt 0:01:56]} Bxe3 {[%emt 0:08:32]}
18. Qxe3 {[%emt 0:00:06]} Be6 {[%emt 0:06:44]} 19. Rac1 {[%emt 0:17:37]} Bxd5 {
[%emt 0:08:52]} 20. exd5 {[%emt 0:00:30]} Rac8 {[%emt 0:01:05]} 21. d6 {
[%emt 0:07:48]} Qd7 {[%emt 0:00:15]} 22. Rxc5 {[%emt 0:08:15]} Qxa4 {[%emt 0:
00:41]} 23. b3 {[%emt 0:01:44]} Qd7 {[%emt 0:01:07]} 24. Re5 {[%emt 0:00:11]}
Rfe8 {[%emt 0:02:42]} 25. Rxe8+ {[%emt 0:00:46]} Rxe8 {[%emt 0:00:18]} 26. Qb6
{[%emt 0:00:14]} h6 {[%emt 0:01:08]} 27. Qc7 {[%emt 0:09:10]} Rd8 {[%emt 0:00:
24]} 28. Rd4 {[%emt 0:00:19]} Kh7 {[%emt 0:01:55]} 29. Qa5 {[%emt 0:03:01]} Re8
{[%emt 0:04:28]} 30. Kh2 {[%emt 0:04:16]} Rc8 {[%emt 0:00:24]} 31. h4 {[%emt 0:
04:07]} Re8 {[%emt 0:00:41]} 32. Qc5 {[%emt 0:01:07]} Rc8 {[%emt 0:00:32]} 33.
Qa5 {[%emt 0:00:17]} Re8 {[%emt 0:00:34]} 34. Qc3 {[%emt 0:00:02]} Rd8 {
[%emt 0:01:06]} 35. Qc2+ {[%emt 0:00:56]} Kg8 {[%emt 0:00:14]} 36. g3 {[%emt 0:
01:42]} Rc8 {[%emt 0:00:28]} 37. Qe4 {[%emt 0:00:34]} Re8 {[%emt 0:00:18]} 38.
Qd5 {[%emt 0:00:21]} Re6 {[%emt 0:01:06]} 39. h5 {[%emt 0:01:20]} Rf6 {[%emt 0:
00:31]} 40. Kg1 {[%emt 0:00:00]} Re6 {[%emt 0:00:00]} 41. Qc5 {[%emt 0:05:47]}
Re1+ {[%emt 0:05:59]} 42. Kg2 {[%emt 0:01:46]} Re8 {[%emt 0:01:35]} 43. Rd5 {
[%emt 0:02:09]} Rd8 {[%emt 0:06:15]} 44. Qd4 {[%emt 0:00:44]} Rc8 {[%emt 0:03:
44]} 45. Kh2 {[%emt 0:03:30]} Rd8 {[%emt 0:02:35]} 46. Qd3 {[%emt 0:03:05]} Re8
{[%emt 0:08:15]} 47. Rc5 {[%emt 0:01:49]} Rd8 {[%emt 0:01:00]} 48. Re5 {
[%emt 0:01:42]} Qc6 {[%emt 0:00:21]} 49. Rd5 {[%emt 0:01:31]} Qd7 {[%emt 0:00:
23]} 50. Qe4 {[%emt 0:03:09]} Qe6 {[%emt 0:02:03]} 51. Qd4 {[%emt 0:02:20]} Qd7
{[%emt 0:00:27]} 52. b4 {[%emt 0:01:00]} Re8 {[%emt 0:01:13]} 53. Qf4 {[%emt 0:
00:24]} Re6 {[%emt 0:03:08]} 54. Qf5 {[%emt 0:00:19]} Kf8 {[%emt 0:00:39]} 55.
Rd4 {[%emt 0:01:26]} b6 {[%emt 0:00:18]} 56. Qd5 {[%emt 0:01:19]} Kg8 {[%emt 0:
00:43]} 57. Qa8+ {[%emt 0:00:33]} Kh7 {[%emt 0:00:26]} 58. Qxa6 {[%emt 0:00:13]
} b5 {[%emt 0:00:34]} 59. Qa3 {[%emt 0:01:01]} Re5 {[%emt 0:00:26]} 60. Qd3+ {
[%emt 0:02:02]} Kg8 {[%emt 0:00:17]} 61. Rd5 {[%emt 0:00:14]} Re6 {[%emt 0:00:
26]} 62. Qf5 {[%emt 0:00:20]} Kf8 {[%emt 0:00:08]} 63. Qd3 {[%emt 0:01:13]} Ke8
{[%emt 0:00:55]} 64. Qc3 {[%emt 0:00:41]} f6 {[%emt 0:00:30]} 65. Qc7 {[%emt 0:
00:55]} Re5 {[%emt 0:00:21]} 66. Rxe5+ {[%emt 0:02:16]} fxe5 {[%emt 0:00:05]}
67. Qc5 {[%emt 0:00:06]} Qf5 {[%emt 0:00:59]} 68. Qxb5+ {[%emt 0:00:10]} Kf7 {
[%emt 0:00:18]} 69. Qd5+ {[%emt 0:00:14]} Kf8 {[%emt 0:00:08]} 70. Kg2 {
[%emt 0:00:17]} 1-0

[Event "71st RUS-ch Superfinal Women 2021"]
[Site "Ufa"]
[Date "2021.10.09"]
[Round "1.5"]
[White "Garifullina, Leya"]
[Black "Voit, Daria"]
[Result "1/2-1/2"]
[ECO "B12"]
[WhiteElo "2409"]
[BlackElo "2357"]
[Annotator "NA"]
[PlyCount "125"]
[EventDate "2021.10.09"]
[EventType "tourn"]
[EventCountry "RUS"]
[SourceTitle "playchess.com"]
[Source "ChessBase"]
[SourceQuality "1"]
[TimeControl "40/5400+30:1800+30"]

{[%evp 8,98,23,18,18,13,36,29,51,41,90,7,15,10,21,15,15,13,17,0,6,4,0,0,0,0,0,
0,14,0,0,0,0,-146,-136,-180,-171,-166,-167,-153,-193,-168,-148,32767,32767,-90,
-64,32767,66,32767,32767,32767,32767,32767,32767,32767,32767,32767,32767,32767,
32767,32767,32767,32767,32767,-146,32767,32767,32767,32767,32767,32767,32767,
32767,32767,-176,-159,-181,32767,-164,-194,-170,-124,-126,-124,-114,-112,-110,
-95,-102,-115,-138,0]} 1. e4 {[%emt 0:00:04]} c6 {[%emt 0:00:02]} 2. d4 {
[%emt 0:00:09]} d5 {[%emt 0:00:05]} 3. e5 {[%emt 0:00:18]} Bf5 {[%emt 0:00:07]}
4. Nf3 {[%emt 0:00:09]} e6 {[%emt 0:00:10]} 5. Be2 {[%emt 0:00:16]} c5 {
[%emt 0:00:12]} 6. Be3 {[%emt 0:00:28]} Qb6 {[%emt 0:00:08]} 7. Nc3 {[%emt 0:
00:39]} Nc6 {[%emt 0:00:46]} ({Much worse is} 7... Qxb2 8. Nb5 $16) 8. O-O {
[%emt 0:00:34]} Qxb2 {[%emt 0:00:19]} 9. Qe1 {[%emt 0:00:36]} (9. Nb5 $16) 9...
cxd4 {[%emt 0:00:21]} 10. Bxd4 {[%emt 0:00:31]} Nxd4 {[%emt 0:00:05]} ({Not} 
10... Qxc2 $2 11. Rc1 $18) ({Avoid the trap} 10... Bxc2 $2 11. Nb5 $18) 11.
Nxd4 {[%emt 0:00:08]} Bb4 {[%emt 0:00:13]} 12. Ndb5 {[%emt 0:00:41]} Ba5 {
[%emt 0:00:16]} ({Reject} 12... Bxc2 13. Qd2 $14) 13. Rb1 {[%emt 0:01:52]} Qxc2
{[%emt 0:00:17]} 14. Rb3 {[%emt 0:00:46]} Ne7 {[%emt 0:10:33]} 15. Nd6+ {
[%emt 0:03:11]} Kf8 {[%emt 0:00:05]} 16. Nxb7 {[%emt 0:00:14]} Bb6 {[%emt 0:00:
58]} 17. Nd6 {[%emt 0:09:06]} Bg6 {[%emt 0:38:40]} 18. Bd1 {[%emt 0:28:57]} Qc1
$1 {[%emt 0:00:48]} 19. Na4 {[%emt 0:00:56]} h5 {[%emt 0:01:47]} 20. Qb4 $2 {
[%emt 0:07:52]} ({White should try} 20. Rc3 $11 Qf4 21. Rf3) 20... Nc6 $1 {
[%emt 0:14:16] Double Attack} 21. Qh4 {[%emt 0:10:10]} (21. Qc3 $17 Qxc3 22.
Rxc3 Nxe5 23. Nxb6 axb6 24. Rc7) 21... Bd8 {[%emt 0:03:08]} ({Resist} 21...
Nxe5 22. Nxb6 axb6 23. Qg3 $17) 22. Qh3 {[%emt 0:05:55]} Nxe5 {[%emt 0:14:46]}
23. f4 {[%emt 0:05:03]} Nc4 {[%emt 0:01:14]} 24. f5 {[%emt 0:10:03]} Nxd6 {
[%emt 0:01:04]} 25. fxg6 {[%emt 0:00:07]} f5 {[%emt 0:07:16]} 26. Rc3 {[%emt 0:
04:41]} Qg5 {[%emt 0:01:36]} 27. Rc6 {[%emt 0:00:43]} Be7 {[%emt 0:00:41]} (
27... Qe7 $1 $15 28. Qc3 Rh6) 28. Nc5 {[%emt 0:01:42]} Qxg6 {[%emt 0:00:03]}
29. Qe3 {[%emt 0:04:52]} Rh6 {[%emt 0:00:23]} 30. Bb3 {[%emt 0:00:43]} Rc8 {
[%emt 0:01:53]} 31. Ra6 {[%emt 0:01:03]} Kg8 {[%emt 0:02:48]} 32. Nxe6 {
[%emt 0:01:21]} Nc4 {[%emt 0:00:19]} 33. Qf3 {[%emt 0:01:10]} Nb6 {[%emt 0:00:
47]} 34. Bxd5 {[%emt 0:00:54]} Nxd5 {[%emt 0:00:33]} 35. Qxd5 {[%emt 0:00:05]}
Qf7 {[%emt 0:00:38]} 36. h3 {[%emt 0:01:05]} (36. Rxf5 $11 Rc1+ 37. Kf2) 36...
Bc5+ {[%emt 0:00:30]} 37. Kh1 {[%emt 0:00:39]} Bb6 {[%emt 0:00:02]} 38. Nf4 {
[%emt 0:00:49]} Rd8 {[%emt 0:00:59]} 39. Qf3 {[%emt 0:00:48]} h4 {[%emt 0:00:
25]} 40. Ra4 {[%emt 0:00:00]} Rhd6 {[%emt 0:00:00]} 41. Ne2 {[%emt 0:06:32]}
Rd3 {[%emt 0:07:10]} 42. Qc6 {[%emt 0:05:25]} Rd1 {[%emt 0:18:58]} 43. Raf4 {
[%emt 0:00:50]} Qxa2 {[%emt 0:02:13]} 44. Ng1 {[%emt 0:00:57] [#]} Rxf1 {
[%emt 0:01:41]} ({Black should try} 44... Qd5 $1 $19 {[%cal Rd5c6]} 45. Qa4 g6
46. Rxd1 Qxd1 47. Qc4+ Kg7) 45. Rxf1 {[%emt 0:00:18]} Qd5 {[%emt 0:00:18]} 46.
Qa4 {[%emt 0:03:02]} Bxg1 {[%emt 0:01:40]} 47. Kxg1 {[%emt 0:00:39]} Qd4+ {
[%emt 0:01:36]} 48. Qxd4 {[%emt 0:00:04]} Rxd4 {[%emt 0:00:04]} 49. Rxf5 {
[%emt 0:00:02] [#]} Rd6 $11 {[%emt 0:00:53]} ({Better is} 49... Ra4 $1 $17 50.
Kf2 Kh7) 50. Ra5 {[%emt 0:02:12]} a6 {[%emt 0:00:03]} 51. Ra4 {[%emt 0:00:12]}
g5 {[%emt 0:00:50]} 52. Ra5 {[%emt 0:00:33]} Rg6 {[%emt 0:00:02]} 53. g3 {
[%emt 0:01:59]} Kf7 {[%emt 0:00:56]} 54. Kg2 {[%emt 0:00:14]} Ke7 {[%emt 0:00:
27]} 55. Kf2 {[%emt 0:02:01]} Kd7 {[%emt 0:01:11]} 56. gxh4 {[%emt 0:02:28]}
gxh4 {[%emt 0:00:03]} 57. Rh5 {[%emt 0:00:04]} Kc6 {[%emt 0:00:29]} 58. Rxh4 {
[%emt 0:00:37]} a5 {[%emt 0:00:02]} 59. Ke3 {[%emt 0:00:22]} Kb5 {[%emt 0:00:
13]} 60. Kd2 {[%emt 0:00:24]} Rc6 {[%emt 0:00:11]} 61. Rh8 {[%emt 0:00:36]} a4
{[%emt 0:00:29]} 62. Rb8+ {[%emt 0:00:26]} Ka5 {[%emt 0:00:03]} 63. Ra8+ {
[%emt 0:00:05]} 1/2-1/2